bitfinex-derivatives/quotes_ETHF0:USTF0_20250604
["timestamp","ask_amount","ask_price","bid_price","bid_amount"]
[1749029701677,0.75914,2633.0,2632.9,0.873]
[1749029701864,0.75914,2633.0,2632.9,4.603]
[1749029701865,4.83944377,2633.0,2632.9,4.603]
[1749029702570,4.08030377,2633.0,2632.9,5.36217]
[1749029703371,4.08030377,2633.0,2632.9,6.25197]
[1749029703572,0.87250377,2633.0,2632.9,6.25197]
[1749029703977,0.87250377,2633.0,2632.9,7.50737]
[1749029704572,3.2078,2633.3,2633.2,0.75908]
[1749029704768,4.07969194,2633.3,2633.2,3.90108]
[1749029704966,4.83875194,2633.3,2633.2,3.90108]
[1749029705775,0.75913,2633.1,2633.0,0.75911]
[1749029706071,0.87189194,2633.1,2633.0,5.36211]
[1749029707273,0.87189194,2633.1,2633.0,0.75911]
[1749029707477,0.87189194,2633.1,2633.0,5.36211]
[1749029708476,0.75911,2633.2,2633.1,0.75911]
[1749029708774,1.62998473,2633.2,2633.1,0.75911]
[1749029709682,0.75911,2633.1,2633.0,4.603]
[1749029709980,1.62998473,2633.1,2633.0,4.603]
[1749029710170,0.87087473,2633.1,2633.0,5.36212]
[1749029711173,0.87087473,2633.1,2633.0,0.75912]
[1749029711478,0.87087473,2633.1,2633.0,5.36212]
[1749029712166,1.62998473,2633.1,2633.0,0.75912]
[1749029712575,0.75913,2633.1,2633.0,5.36214]
[1749029712779,1.62030158,2633.1,2633.0,5.36214]
[1749029713481,1.62030158,2633.1,2633.0,2.22014]
[1749029713682,1.62030158,2633.1,2633.0,5.36214]
[1749029714488,0.86117158,2633.1,2633.0,5.36214]
[1749029715381,1.62028158,2633.1,2633.0,5.36214]
[1749029716087,0.86117158,2633.1,2633.0,5.36214]
[1749029716788,3.2078,2633.3,2633.2,0.75909]
[1749029716978,4.06875278,2633.3,2633.2,3.90109]
[1749029717687,0.86095278,2633.3,2633.2,3.90109]
[1749029719389,3.2078,2633.6,2633.5,0.759]
[1749029719581,3.2078,2633.6,2633.5,3.901]
[1749029719985,3.96677,2633.6,2633.5,3.901]
[1749029720386,3.2078,2633.6,2633.5,3.901]
[1749029720990,3.96677,2633.6,2633.5,0.759]
[1749029721195,3.96677,2633.6,2633.5,3.142]
[1749029721391,0.759,2633.5,2633.4,0.75901]
[1749029721592,0.75903,2633.4,2633.3,1.62664]
[1749029721787,0.75903,2633.4,2633.3,6.22964]
[1749029722094,1.63302,2633.5,2633.4,0.75903]
[1749029722285,0.874,2633.5,2633.4,0.75903]
[1749029722789,1.633,2633.5,2633.4,0.75903]
[1749029723685,0.759,2633.5,2633.4,0.75903]
[1749029728592,0.75903,2633.4,2633.3,0.8676]
[1749029728788,1.56193,2633.4,2633.3,6.22866]
[1749029729696,0.8029,2633.4,2633.3,6.22866]
[1749029730292,1.56193,2633.4,2633.3,6.22866]
[1749029730697,0.8029,2633.4,2633.3,6.22866]
[1749029730899,1.56193,2633.4,2633.3,6.22866]
[1749029731099,0.8029,2633.4,2633.3,6.22866]
[1749029731299,1.66086363,2633.4,2633.3,6.22866]
[1749029731495,2.41989363,2633.4,2633.3,5.36106]
[1749029732008,2.41989363,2633.4,2633.3,2.22006]
[1749029732208,3.69179363,2633.4,2633.3,0.75906]
[1749029732506,3.69179363,2633.4,2633.3,5.36106]
[1749029733512,3.69183857,2633.4,2633.3,5.36106]
[1749029734110,1.66090857,2633.4,2633.3,5.36106]
[1749029734606,1.65508626,2633.4,2633.3,5.36106]
[1749029734910,0.85800857,2633.4,2633.3,5.36106]
[1749029735105,0.85800857,2633.4,2633.3,2.22006]
[1749029735311,0.85800857,2633.4,2633.3,5.36106]
[1749029735907,0.85800857,2633.4,2633.3,5.36006]
[1749029737511,3.96678,2633.6,2633.5,0.759]
[1749029737711,4.82456967,2633.6,2633.5,3.9]
[1749029738411,4.82456967,2633.6,2633.5,4.7212]
[1749029740211,4.06558967,2633.6,2633.5,0.759]
[1749029740403,4.82455967,2633.6,2633.5,5.36]
[1749029741712,4.82502156,2633.6,2633.5,5.36]
[1749029742212,4.06605156,2633.6,2633.5,5.36]
[1749029743018,4.82502156,2633.6,2633.5,5.36]
[1749029744109,4.06605156,2633.6,2633.5,5.36]
[1749029745311,4.82502156,2633.6,2633.5,5.36]
[1749029745708,4.06605156,2633.6,2633.5,5.36]
[1749029746014,4.06656498,2633.6,2633.5,5.36]
[1749029746512,4.82553498,2633.6,2633.5,5.36]
[1749029747514,1.61773498,2633.6,2633.5,5.36]
[1749029748711,0.85876498,2633.6,2633.5,5.36]
[1749029749516,0.85876498,2633.6,2633.5,46.9794]
[1749029750013,3.96668,2633.9,2633.8,0.75891]
[1749029750208,4.06678897,2633.9,2633.8,3.89891]
[1749029751517,4.82566897,2633.9,2633.8,3.89891]
[1749029751815,4.82566897,2633.9,2633.8,44.69891]
[1749029752617,4.06678897,2633.9,2633.8,44.69891]
[1749029752913,0.85898897,2633.9,2633.8,44.69891]
[1749029753120,0.7588,2634.2,2634.1,0.75883]
[1749029753315,0.7588,2634.2,2634.1,3.14]
[1749029753617,1.5258,2634.2,2634.1,3.14]
[1749029754315,1.5258,2634.2,2634.1,3.89883]
[1749029755913,0.767,2634.2,2634.1,3.89883]
[1749029756414,0.767,2634.2,2634.1,5.35783]
[1749029757317,1.5258,2634.2,2634.1,5.35783]
[1749029757517,0.767,2634.2,2634.1,2.21883]
[1749029757816,0.767,2634.2,2634.1,5.35783]
[1749029758016,1.5258,2634.2,2634.1,5.35783]
[1749029759122,0.767,2634.2,2634.1,5.35783]
[1749029759623,3.2078,2634.3,2634.2,0.7588]
[1749029760519,3.2078,2634.3,2634.2,2.0032]
[1749029762817,1.89597,2635.7,2634.2,6.2444]
[1749029763022,0.8258,2635.7,2635.3,3.2078]
[1749029763321,0.75832,2635.9,2635.8,0.75834]
[1749029763624,0.75832,2635.9,2635.8,3.139]
[1749029763926,1.57112,2635.9,2635.8,3.139]
[1749029764418,1.57112,2635.9,2635.6,0.0056953]
[1749029764419,0.75836,2635.7,2635.6,0.0056953]
[1749029764626,3.96616,2635.7,2635.6,3.1446953]
[1749029765127,6.04146211,2635.7,2635.6,3.1446953]
[1749029766018,5.28310211,2635.7,2635.6,3.1446953]
[1749029766419,6.04147211,2635.7,2635.6,0.0056953]
[1749029766621,6.04147211,2635.7,2635.6,1.4636953]
[1749029766815,6.04147211,2635.7,2635.6,4.6016953]
[1749029767421,2.07530211,2635.7,2635.6,5.3600853]
[1749029769122,2.07302941,2635.7,2635.6,5.3600853]
[1749029769327,2.83139941,2635.7,2635.6,5.3600853]
[1749029769624,6.03919941,2635.7,2635.6,4.6006953]
[1749029770123,2.83139941,2635.7,2635.6,4.6006953]
[1749029770425,2.07302941,2635.7,2635.6,4.6006953]
[1749029770725,2.83139941,2635.7,2635.6,4.6006953]
[1749029771324,2.83167354,2635.7,2635.6,4.6006953]
[1749029771525,1.60727354,2635.7,2635.6,4.6006953]
[1749029772026,2.88947354,2635.7,2635.6,4.6006953]
[1749029773229,2.04057,2635.7,2635.6,5.3590853]
[1749029773432,2.88943386,2635.7,2635.6,5.3590853]
[1749029773730,2.88943386,2635.7,2635.6,4.6006953]
[1749029775320,6.09723386,2635.7,2635.6,0.0056953]
[1749029775521,14.11021564,2635.7,2635.6,0.0056953]
[1749029775722,14.11021564,2635.7,2635.6,3.1426953]
[1749029775928,0.75851,2635.2,2635.1,3.2078]
[1749029776227,1.60737386,2635.2,2635.1,7.8028]
[1749029776828,2.93267386,2635.2,2635.1,7.8028]
[1749029777028,3.75147386,2635.2,2635.1,7.8028]
[1749029777329,3.75210336,2635.2,2635.1,7.8028]
[1749029779335,3.75210336,2635.2,2635.1,8.56134]
[1749029779531,3.75210336,2635.2,2635.1,5.35354]
[1749029779834,2.99359336,2635.2,2635.1,5.35354]
[1749029780025,1.66829336,2635.2,2635.1,5.35354]
[1749029781431,0.8188,2635.2,2635.1,5.35354]
[1749029781626,1.66904404,2635.2,2635.1,5.35354]
[1749029781835,0.85024404,2635.2,2635.1,5.35354]
[1749029783432,0.85024404,2635.2,2635.1,6.15184]
[1749029784535,0.75837,2635.8,2635.7,0.75834]
[1749029784736,0.75837,2635.8,2635.7,3.89434]
[1749029785036,0.75844,2635.5,2635.4,0.75842]
[1749029785229,1.8958,2635.9,2635.4,4.594]
[1749029785531,0.75842,2635.6,2635.5,0.75839]
[1749029785840,0.75842,2635.6,2635.5,5.35239]
[1749029786336,0.75843,2635.5,2635.4,0.75843]
[1749029786538,0.75841,2635.6,2635.5,0.75841]
[1749029787638,1.59976,2635.8,2635.7,0.75837]
[1749029787842,1.59976,2635.8,2635.7,3.136]
[1749029791529,0.75839,2635.6,2635.5,0.75842]
[1749029791845,0.75839,2635.6,2635.5,5.35242]
[1749029796431,1.60687612,2635.6,2635.5,5.35242]
[1749029796841,1.60687612,2635.6,2635.5,0.75842]
[1749029797042,1.60687612,2635.6,2635.5,5.35042]
[1749029797242,0.84848612,2635.6,2635.4,0.7826]
[1749029797443,3.77140178,2635.6,2635.5,5.35042]
[1749029797741,4.61990312,2635.6,2635.5,4.592]
[1749029798142,1.60691078,2635.6,2635.5,4.592]
[1749029799345,4.61989256,2635.6,2635.5,4.592]
[1749029800843,8.96531256,2635.6,2634.9,3.2078]
[1749029801140,0.75857,2635.0,2634.9,3.9836]
[1749029801341,0.84849078,2635.0,2634.9,10.5922]
[1749029801935,0.84849078,2635.0,2634.9,11.3945]
[1749029802135,0.75853,2635.2,2635.1,0.75854]
[1749029802333,1.60708959,2635.2,2635.1,3.89354]
[1749029802535,0.84855959,2635.2,2635.1,3.89354]
[1749029804638,1.60706959,2635.2,2635.1,3.89354]
[1749029804838,1.60706959,2635.2,2635.0,1.258]
[1749029804839,0.75854,2635.1,2635.0,2.01654]
[1749029805034,1.60709959,2635.1,2635.0,6.60854]
[1749029805843,0.84855959,2635.1,2635.0,6.60854]
[1749029806342,0.75844,2635.6,2635.5,0.75839]
[1749029806548,0.84837245,2635.6,2635.5,3.89339]
[1749029806846,1.60676245,2635.6,2635.5,3.89339]
[1749029808452,0.84837245,2635.6,2635.5,3.89339]
[1749029810443,3.77133178,2635.8,2635.7,0.75837]
[1749029810650,4.62026274,2635.8,2635.7,3.89237]
[1749029810949,4.62026274,2635.8,2635.7,3.134]
[1749029811254,1.60728096,2635.8,2635.7,3.134]
[1749029811456,2.92608096,2635.8,2635.7,3.134]
[1749029814658,2.92644832,2635.8,2635.7,3.134]
[1749029814858,2.92644832,2635.8,2635.7,4.591]
[1749029815955,0.75839,2635.6,2635.5,0.75841]
[1749029816153,1.60768832,2635.6,2635.5,4.591]
[1749029816654,2.45078832,2635.6,2635.5,4.591]
[1749029817258,0.75845,2635.4,2635.3,4.73446]
[1749029817561,0.75848,2635.3,2635.2,1.457]
[1749029817760,1.60777832,2635.3,2635.2,4.591]
[1749029818760,1.60786855,2635.3,2635.2,4.591]
[1749029821559,1.60767936,2635.3,2635.2,1.457]
[1749029821862,4.81547936,2635.3,2635.2,1.457]
[1749029822056,4.81547936,2635.3,2635.2,4.591]
[1749029822256,0.75854,2635.1,2635.0,0.7868]
[1749029822457,1.60773936,2635.1,2635.0,5.3778]
[1749029823556,1.60773936,2635.1,2635.0,0.7868]
[1749029823763,1.60773936,2635.1,2635.0,5.3778]
[1749029825662,1.60265975,2635.1,2635.0,5.3778]
[1749029827766,1.60265975,2635.1,2635.0,5.3758]
[1749029828157,1.60265975,2635.1,2635.0,0.7868]
[1749029828361,1.60265975,2635.1,2635.0,5.3758]
[1749029828766,1.60265975,2635.1,2635.0,0.7868]
[1749029828966,1.60265975,2635.1,2635.0,5.3758]
[1749029829964,1.60234169,2635.1,2635.0,5.3758]
[1749029830867,1.60234169,2635.1,2635.0,6.13437]
[1749029831469,1.60234169,2635.1,2635.0,5.3758]
[1749029833572,1.60234169,2635.1,2635.0,6.13437]
[1749029834259,1.6022186,2635.1,2635.0,6.13437]
[1749029834463,1.6022186,2635.1,2635.0,5.3758]
[1749029835675,1.6022186,2635.1,2635.0,6.13437]
[1749029836376,0.8436786,2635.1,2635.0,6.13437]
[1749029837176,1.6022186,2635.1,2635.0,6.13437]
[1749029837572,0.8436786,2635.1,2635.0,6.13437]
[1749029838272,0.75853,2635.2,2635.1,0.75854]
[1749029838470,1.60241914,2635.2,2635.1,0.75854]
[1749029839469,0.84388914,2635.2,2635.1,0.75854]
[1749029839669,0.84388914,2635.2,2635.1,1.98614]
[1749029840578,1.60239914,2635.2,2635.1,1.98614]
[1749029841284,0.84388914,2635.2,2635.1,1.98614]
[1749029843476,0.75837,2635.7,2635.6,0.75837]
[1749029843676,0.75837,2635.7,2635.6,3.89037]
[1749029845680,0.75836,2635.8,2635.7,0.75834]
[1749029847180,1.54762,2635.9,2635.7,0.75835]
[1749029847378,0.75834,2635.8,2635.7,0.75835]
[1749029847573,0.75834,2635.8,2635.7,5.34635]
[1749029847775,0.75834,2635.8,2635.7,4.588]
[1749029847983,0.75834,2635.8,2635.7,5.34637]
[1749029848175,2.68508,2635.9,2635.5,0.806]
[1749029848382,0.75839,2635.7,2635.6,5.34639]
[1749029848579,7.13208,2635.9,2635.7,0.75835]
[1749029848580,0.75834,2635.8,2635.7,0.75835]
[1749029848878,0.75837,2635.7,2635.6,5.34638]
[1749029849488,2.00715,2635.8,2635.7,0.75837]
[1749029851083,0.75837,2635.7,2635.6,5.34639]
[1749029851284,0.75839,2635.6,2635.5,0.75841]
[1749029851488,0.75839,2635.6,2635.5,5.34541]
[1749029851784,0.75839,2635.7,2635.5,5.34541]
[1749029851985,0.75839,2635.6,2635.5,5.34541]
[1749029852878,0.75839,2635.6,2635.5,5.3454]
[1749029853991,0.75839,2635.6,2635.5,1.456]
[1749029854177,0.75839,2635.6,2635.5,4.587]
[1749029855087,0.75839,2635.6,2635.5,5.34542]
[1749029855286,0.75839,2635.6,2635.5,4.587]
[1749029857589,0.75839,2635.6,2635.5,5.34542]
[1749029857978,0.75839,2635.6,2635.5,4.587]
[1749029858179,0.75842,2635.5,2635.4,0.75843]
[1749029858389,0.75842,2635.5,2635.4,5.34443]
[1749029862188,1.59860727,2635.5,2635.4,5.34443]
[1749029863389,1.59880995,2635.5,2635.4,5.34443]
[1749029863788,1.59880995,2635.5,2635.4,8.55223]
[1749029863987,1.59880995,2635.5,2635.4,9.87083]
[1749029864992,0.84038995,2635.5,2635.4,9.87083]
[1749029865195,1.59880995,2635.5,2635.4,9.87083]
[1749029865496,0.84038995,2635.5,2635.4,9.87083]
[1749029866093,1.59880995,2635.5,2635.4,9.87083]
[1749029867695,1.59971838,2635.5,2635.4,9.87083]
[1749029868198,1.59971838,2635.5,2635.4,8.55223]
[1749029870398,1.59971838,2635.5,2635.4,5.34443]
[1749029870895,0.84129838,2635.5,2635.4,5.34443]
[1749029871799,3.7767263,2635.6,2635.5,0.75842]
[1749029872000,4.61898178,2635.6,2635.5,0.75842]
[1749029872700,1.60067548,2635.6,2635.5,0.75842]
[1749029875898,1.60067548,2635.6,2635.5,5.34242]
[1749029876099,1.60091566,2635.6,2635.5,5.34242]
[1749029877305,0.84249566,2635.6,2635.5,5.34242]
[1749029877504,1.60088566,2635.6,2635.5,5.34242]
[1749029877905,0.84249566,2635.6,2635.5,5.34242]
[1749029878905,1.63709566,2635.6,2635.5,5.34242]
[1749029880010,0.75854,2635.1,2635.0,10.9488]
[1749029880205,1.60096463,2635.1,2635.0,12.325]
[1749029880400,0.84242463,2635.1,2635.0,12.325]
[1749029880607,0.84242463,2635.1,2635.0,13.08357]
[1749029881508,1.60096463,2635.1,2635.0,13.08357]
[1749029882115,1.60096463,2635.1,2635.0,12.325]
[1749029882413,1.60096463,2635.1,2635.0,13.08357]
[1749029882811,1.60062508,2635.1,2635.0,13.08357]
[1749029883813,0.84208508,2635.1,2635.0,13.08357]
[1749029885342,0.84208508,2635.1,2635.0,13.08257]
[1749029886821,0.7531,2635.3,2635.2,0.75851]
[1749029887014,1.59438155,2635.3,2635.2,3.88651]
[1749029887209,2.35286155,2635.3,2635.2,3.88651]
[1749029888819,1.59438155,2635.3,2635.2,3.88651]
[1749029889419,1.61231448,2635.3,2635.2,3.88651]
[1749029890920,2.37248349,2635.3,2635.2,3.88651]
[1749029891319,1.61400349,2635.3,2635.2,3.88651]
[1749029891619,2.37248349,2635.3,2635.2,3.88651]
[1749029893129,2.37248349,2635.3,2635.2,0.75851]
[1749029893332,2.37248349,2635.3,2635.2,3.88651]
[1749029893530,2.37248349,2635.3,2635.2,3.128]
[1749029894724,2.37248349,2635.3,2635.2,3.88651]
[1749029895130,2.37243685,2635.3,2635.2,3.88651]
[1749029896227,1.61395685,2635.3,2635.2,3.88651]
[1749029899336,2.37250202,2635.3,2635.2,3.88651]
[1749029899938,2.37250202,2635.3,2635.2,0.75851]
[1749029900137,2.37250202,2635.3,2635.2,3.88551]
[1749029904442,1.61940202,2635.3,2635.2,3.88551]
[1749029905432,0.86092202,2635.3,2635.2,3.88551]
[1749029906843,0.86092202,2635.3,2635.2,5.50031]
[1749029907745,0.75842,2635.5,2635.4,0.75845]
[1749029908042,1.62005881,2635.5,2635.4,3.88545]
[1749029908739,0.86163881,2635.5,2635.4,3.88545]
[1749029909740,0.86163881,2635.5,2635.4,5.20265]
[1749029910048,0.0056953,2636.1,2636.0,0.75828]
[1749029910346,0.0056953,2636.1,2636.0,3.88428]
[1749029910737,0.0056953,2636.1,2636.0,44.68428]
[1749029911147,0.0056953,2636.1,2636.0,45.98208]
[1749029911336,3.2078,2636.5,2636.4,0.75816]
[1749029911536,0.75814,2636.5,2636.4,5.33816]
[1749029913649,0.75814,2636.5,2636.4,4.58]
[1749029913946,2.01444,2636.5,2636.4,4.58]
[1749029916949,2.01444,2636.5,2636.4,4.29546683]
[1749029917145,5.02257904,2636.5,2636.4,4.29546683]
[1749029918244,3.76627904,2636.5,2636.4,4.29546683]
[1749029919149,0.75814,2636.5,2636.4,4.29546683]
[1749029919342,0.75814,2636.5,2636.4,5.05362683]
[1749029919544,3.01383434,2636.7,2636.4,4.29546683]
[1749029919855,0.0056953,2636.7,2636.6,3.96591]
[1749029920044,0.0056953,2636.7,2636.6,7.09091]
[1749029920548,3.96575,2637.2,2636.7,1.89519]
[1749029920750,0.75796,2637.1,2637.0,0.75797]
[1749029920943,0.75796,2637.1,2637.0,3.88297]
[1749029921646,3.2078,2637.2,2637.1,0.75796]
[1749029921844,0.7636253,2637.3,2637.0,4.4413]
[1749029922039,0.7636253,2637.3,2637.2,0.75793]
[1749029922240,1.63534774,2637.3,2637.2,3.124]
[1749029923444,2.77225774,2637.3,2636.9,4.0138]
[1749029923643,0.75796,2637.1,2636.9,1.56401]
[1749029923951,1.62973244,2637.0,2636.9,0.806]
[1749029924254,1.62837779,2637.0,2636.9,6.14002]
[1749029924448,1.62837779,2637.0,2636.9,5.382]
[1749029925255,1.62837779,2637.0,2636.9,6.14002]
[1749029925458,1.62837779,2637.0,2636.9,5.382]
[1749029926056,1.62837779,2637.0,2636.9,6.14002]
[1749029926556,1.62921101,2637.0,2636.9,5.85557439]
[1749029926857,1.62921101,2637.0,2636.9,5.09755439]
[1749029928351,1.62915886,2637.0,2636.9,5.09755439]
[1749029928857,1.62915886,2637.0,2636.9,5.85557439]
[1749029929460,1.62915886,2637.0,2636.9,5.85457439]
[1749029930759,1.62915886,2637.0,2636.9,5.09655439]
[1749029931860,1.62915886,2637.0,2636.9,5.85457439]
[1749029932362,0.75799,2637.0,2636.9,5.85457439]
[1749029932553,1.62950635,2637.0,2636.9,5.85457439]
[1749029933052,1.62950635,2637.0,2636.9,5.09655439]
[1749029933554,1.62950635,2637.0,2636.9,5.85457439]
[1749029936556,1.63076115,2637.0,2636.9,5.85457439]
[1749029937752,0.87277115,2637.0,2636.9,9.06237439]
[1749029937960,0.0056953,2637.3,2637.2,0.75793]
[1749029938256,0.0056953,2637.3,2637.2,7.08773]
[1749029938761,0.75779,2637.8,2637.7,0.75778]
[1749029939058,0.75779,2637.8,2637.7,3.122]
[1749029940063,0.75779,2637.8,2637.7,3.87979]
[1749029940359,0.75779,2637.8,2637.7,3.122]
[1749029940555,3.9557953,2638.0,2637.5,1.5502953]
[1749029940745,0.75779,2637.7,2637.6,4.574]
[1749029940945,0.75779,2637.7,2637.6,5.33182]
[1749029941456,0.75779,2637.7,2637.6,2.20982]
[1749029941655,0.75779,2637.7,2637.6,5.33182]
[1749029941963,0.75774,2637.9,2637.8,0.75775]
[1749029942260,0.75774,2637.9,2637.8,3.87875]
[1749029942453,0.75774,2637.9,2637.8,3.121]
[1749029943062,0.75781,2637.7,2637.5,2.3081253]
[1749029943256,0.75781,2637.7,2637.6,5.32982]
[1749029944059,0.75777,2637.8,2637.7,0.75778]
[1749029944258,0.75775,2637.9,2637.7,0.75778]
[1749029944555,3.2134953,2638.0,2637.8,3.121]
[1749029944760,0.0056953,2638.0,2637.9,1.51543]
[1749029944959,0.7633953,2638.0,2637.9,0.7577]
[1749029945262,0.7633953,2638.0,2637.9,1.451]
[1749029945555,3.9711953,2638.0,2637.5,0.7633953]
[1749029945747,0.75782,2637.6,2637.5,0.7633953]
[1749029945953,0.75782,2637.6,2637.5,5.3353953]
[1749029946454,0.75782,2637.6,2637.5,5.3355453]
[1749029946762,0.75782,2637.6,2637.5,4.5776953]
[1749029947965,0.75782,2637.6,2637.5,5.3355453]
[1749029948953,0.75782,2637.6,2637.5,2.2145453]
[1749029949160,0.75781,2637.7,2637.5,4.5766953]
[1749029949457,0.75778,2637.8,2637.5,7.50011617]
[1749029949654,0.75778,2637.8,2637.7,0.75779]
[1749029949854,0.75778,2637.8,2637.7,3.87779]
[1749029950055,1.62202756,2637.8,2637.7,4.61579]
[1749029950255,0.86424756,2637.8,2637.7,4.61579]
[1749029951356,0.86441138,2637.8,2637.7,4.61579]
[1749029951965,1.62217138,2637.8,2637.7,4.61579]
[1749029952162,0.75776,2637.8,2637.7,0.738]
[1749029952356,0.75776,2637.8,2637.7,5.308]
[1749029952654,0.75782,2637.6,2637.5,3.2134953]
[1749029953060,1.62207157,2637.6,2637.5,7.7834953]
[1749029953263,1.62207157,2637.6,2637.5,8.5413453]
[1749029953458,1.62207157,2637.6,2637.5,3.2134953]
[1749029953658,0.75797,2637.1,2637.0,1.45]
[1749029953857,1.62222157,2637.1,2637.0,4.57]
[1749029954363,1.62222157,2637.1,2637.0,5.32799]
[1749029955561,1.62274378,2637.1,2637.0,5.32799]
[1749029956265,1.62274378,2637.1,2637.0,1.45]
[1749029956462,1.62274378,2637.1,2637.0,4.57]
[1749029957166,1.62274378,2637.1,2637.0,5.32799]
[1749029962171,0.86477378,2637.1,2637.0,5.32799]
[1749029962662,0.86477378,2637.1,2637.0,6.52799]
[1749029963764,0.75794,2637.2,2637.1,0.75796]
[1749029964072,1.62344951,2637.2,2637.1,0.75796]
[1749029964470,0.86550951,2637.2,2637.1,0.75796]
[1749029966978,0.86550951,2637.2,2637.1,3.87696]
[1749029971787,0.86550951,2637.2,2637.1,0.75796]
[1749029971974,1.62343951,2637.2,2637.1,0.75796]
[1749029972175,1.62327801,2637.2,2637.1,5.32696]
[1749029972370,1.62327801,2637.2,2637.1,1.45]
[1749029972585,3.60177801,2637.2,2637.1,4.569]
[1749029973275,3.60177801,2637.2,2637.1,5.32696]
[1749029973677,2.73643,2637.2,2637.1,5.32696]
[1749029973880,3.60155895,2637.2,2637.1,5.32696]
[1749029974384,6.80935895,2637.2,2637.1,5.32696]
[1749029974575,6.80935895,2637.2,2637.1,4.569]
[1749029974776,6.80935895,2637.2,2637.1,1.45]
[1749029974980,6.80935895,2637.2,2637.1,4.568]
[1749029975174,6.05142895,2637.2,2636.8,0.0056953]
[1749029975482,3.96582,2636.9,2636.8,0.0056953]
[1749029975683,4.83083935,2636.9,2636.8,4.5736953]
[1749029975883,4.83085179,2636.9,2636.8,4.5736953]
[1749029976381,4.07282939,2636.9,2636.8,2.2137453]
[1749029976579,4.07282939,2636.9,2636.8,5.3317453]
[1749029977277,6.02772939,2636.9,2636.8,5.3317453]
[1749029977478,6.78574939,2636.9,2636.8,5.3317453]
[1749029977982,6.02772939,2636.9,2636.8,5.3317453]
[1749029980391,6.02676928,2636.9,2636.8,5.3317453]
[1749029981584,4.79246928,2636.9,2636.8,5.3317453]
[1749029982083,1.58466928,2636.9,2636.8,5.3317453]
[1749029982880,0.86406928,2636.9,2636.8,5.3317453]
[1749029984477,0.758,2637.0,2636.9,0.75802]
[1749029984676,1.62199814,2637.0,2636.9,0.75802]
[1749029986084,0.75802,2636.9,2636.8,0.7637153]
[1749029986382,2.83781814,2636.9,2636.8,4.5726953]
[1749029987793,2.83781814,2636.9,2636.8,5.3307453]
[1749029988593,2.83746799,2636.9,2636.8,5.3307453]
[1749029990085,2.83746799,2636.9,2636.8,5.39806006]
[1749029992089,6.04526799,2636.9,2636.8,4.64001006]
[1749029992793,6.04501101,2636.9,2636.8,4.64001006]
[1749029993891,6.04501101,2636.9,2636.8,5.39806006]
[1749029995099,6.04501101,2636.9,2636.8,4.64001006]
[1749029995295,6.04501101,2636.9,2636.8,0.07301006]
[1749029995493,6.04501101,2636.9,2636.8,4.63901006]
[1749029995786,6.04501101,2636.9,2636.8,1.52201006]
[1749029995991,6.04501101,2636.9,2636.8,4.63901006]
[1749029999892,6.04501101,2636.9,2636.8,5.39706006]
[1749030000098,4.82921101,2636.9,2636.8,5.39706006]
[1749030003895,4.83061296,2636.9,2636.8,5.39706006]
[1749030008700,4.83061296,2636.9,2636.8,2.28006006]
[1749030008891,4.83061296,2636.9,2636.8,5.39606006]
[1749030009795,4.07259296,2636.9,2636.8,5.39606006]
[1749030010194,7.09356295,2636.9,2636.8,6.68406006]
[1749030010498,7.09356295,2636.9,2636.8,6.6167453]
[1749030011500,4.07259296,2636.9,2636.8,6.68406006]
[1749030012097,4.07296783,2636.9,2636.8,6.68406006]
[1749030012499,4.07296783,2636.9,2636.8,6.6167453]
[1749030012801,0.86516783,2636.9,2636.8,6.6167453]
[1749030013601,1.62318783,2636.9,2636.8,6.6167453]
[1749030014101,0.86516783,2636.9,2636.8,6.6167453]
[1749030015501,1.62318783,2636.9,2636.8,6.6167453]
[1749030015697,0.86516783,2636.9,2636.8,6.6167453]
[1749030016294,0.86506445,2636.9,2636.8,5.8586953]
[1749030016493,0.86506445,2636.9,2636.8,6.6167453]
[1749030020404,0.75797,2637.1,2637.0,0.75796]
[1749030020605,1.64572518,2637.1,2637.0,3.87296]
[1749030020902,1.64572518,2637.1,2637.0,4.59056]
[1749030021103,2.33122518,2637.1,2637.0,4.59056]
[1749030022405,2.33117295,2637.1,2637.0,4.59056]
[1749030022606,2.33117295,2637.1,2637.0,3.87296]
[1749030022812,3.61027295,2637.1,2637.0,3.87296]
[1749030023309,0.75802,2636.9,2636.8,0.0056953]
[1749030023504,1.64572295,2636.9,2636.8,5.39406006]
[1749030023699,1.64572295,2636.9,2636.8,0.83106006]
[1749030023906,1.64572295,2636.9,2636.8,5.39406006]
[1749030024110,0.88770295,2636.9,2636.8,5.39406006]
[1749030024310,1.64572295,2636.9,2636.8,5.39406006]
[1749030024501,0.75819,2636.3,2636.2,7.737]
[1749030024701,0.75819,2636.3,2636.2,13.05822]
[1749030024702,1.64589295,2636.3,2636.2,13.05822]
[1749030024910,1.64589295,2636.3,2636.2,12.3]
[1749030025103,2.36159295,2636.3,2636.2,12.3]
[1749030025908,2.36159295,2636.3,2636.2,13.05822]
[1749030026302,2.36159295,2636.3,2636.2,12.3]
[1749030026703,2.36159295,2636.3,2636.2,13.05822]
[1749030027013,2.36159295,2636.3,2636.2,12.3]
[1749030027509,2.36159295,2636.3,2636.2,13.05822]
[1749030027698,2.36159295,2636.3,2636.2,9.94322]
[1749030027905,2.36159295,2636.3,2636.2,12.3]
[1749030028210,1.47389,2636.3,2636.2,12.3]
[1749030028411,2.36070673,2636.3,2636.2,12.3]
[1749030032914,2.35930531,2636.3,2636.2,12.3]
[1749030034713,2.35930531,2636.3,2636.2,12.36731476]
[1749030035616,0.88541531,2636.3,2636.2,13.12553476]
[1749030036112,0.0056953,2636.5,2636.4,0.75816]
[1749030036311,0.75813,2636.6,2636.5,0.75811]
[1749030036511,0.75813,2636.6,2636.5,5.09311]
[1749030040515,0.75813,2636.6,2636.5,4.335]
[1749030040813,0.7581,2636.7,2636.6,0.75809]
[1749030041011,0.7581,2636.7,2636.6,1.99649]
[1749030041207,3.2134953,2636.8,2636.7,0.75808]
[1749030041517,0.0056953,2636.8,2636.7,3.87208]
[1749030041910,0.75794,2637.2,2637.1,0.75796]